fUST/lending_fUST_20250618
["ID","MTS","AMOUNT","RATE_DAILY","PERIOD"]
[366430584,1750253149108,-555.68446237,0.00022191,6]
[366430585,1750253149132,-460.0,0.00022191,6]
[366430586,1750253149157,-460.0,0.00022191,6]
[366430587,1750253149181,-460.0,0.00022191,6]
[366430588,1750253149212,-416.18790948,0.00022191,6]
[366430589,1750253149238,-420.0,0.00022191,6]
[366430590,1750253149262,-460.0,0.00022191,6]
[366430591,1750253149289,-250.0,0.00022191,6]
[366430592,1750253149312,-460.0,0.00022191,6]
[366430593,1750253149335,-460.0,0.00022191,6]
[366430594,1750253149359,-460.0,0.00022191,6]
[366430595,1750253149384,-460.0,0.00022191,6]
[366430596,1750253149408,-410.09475286,0.00022191,6]
[366430597,1750253149431,-460.0,0.00022191,6]
[366430598,1750253149454,-460.0,0.00022191,6]
[366430599,1750253149477,-460.0,0.00022191,6]
[366430600,1750253149499,-459.84832364,0.00022191,6]
[366430601,1750253149522,-460.0,0.00022191,6]
[366430602,1750253149547,-460.0,0.00022191,6]
[366430603,1750253149569,-460.0,0.00022191,6]
[366430604,1750253149592,-420.0,0.00022191,6]
[366430605,1750253149616,-460.0,0.00022191,6]
[366430606,1750253149639,-460.0,0.00022191,6]
[366430607,1750253149661,-460.0,0.00022191,6]
[366430608,1750253149683,-230.0,0.00022191,6]
[366430609,1750253149704,-460.0,0.00022191,6]
[366430610,1750253149728,-573.27,0.00022191,6]
[366430611,1750253149749,-460.0,0.00022191,6]
[366430612,1750253149772,-460.0,0.00022191,6]
[366430613,1750253149797,-3313.0,0.00022191,6]
[366430614,1750253149821,-460.0,0.00022191,6]
[366430615,1750253149844,-460.0,0.00022191,6]
[366430616,1750253149872,-460.0,0.00022191,6]
[366430617,1750253149902,-1420.54,0.00022191,6]
[366430618,1750253149925,-460.0,0.00022191,6]
[366430619,1750253149947,-460.0,0.00022191,6]
[366430620,1750253149970,-460.0,0.00022191,6]
[366430621,1750253149994,-1440.34,0.00022191,6]
[366430622,1750253150017,-622.93,0.00022191,6]
[366430623,1750253150040,-460.0,0.00022191,6]
[366430624,1750253150061,-460.0,0.00022191,6]
[366430625,1750253150082,-410.0,0.00022191,6]
[366430626,1750253150105,-460.0,0.00022191,6]
[366430627,1750253150130,-1676.99,0.00022191,6]
[366430628,1750253150153,-460.0,0.00022191,6]
[366430629,1750253150177,-1129.06,0.00022191,6]
[366430630,1750253150201,-460.0,0.00022191,6]
[366430631,1750253150223,-460.0,0.00022191,6]
[366430632,1750253150245,-177.0,0.00022191,6]
[366430633,1750253150268,-460.0,0.00022191,6]
[366430634,1750253150292,-460.0,0.00022191,6]
[366430635,1750253150316,-1707.83,0.00022191,6]
[366430636,1750253150340,-1371.87,0.00022191,6]
[366430637,1750253150361,-460.0,0.00022191,6]
[366430638,1750253150383,-484.29,0.00022191,6]
[366430639,1750253150502,-460.0,0.00022191,6]
[366430640,1750253150526,-986.23,0.00022191,6]
[366430641,1750253150548,-460.0,0.00022191,6]
[366430642,1750253150571,-460.0,0.00022191,6]
[366430643,1750253150594,-460.0,0.00022191,6]
[366430644,1750253150618,-460.0,0.00022191,6]
[366430645,1750253150641,-460.0,0.00022191,6]
[366430646,1750253150665,-750.78,0.00022191,6]
[366430647,1750253150688,-490.44,0.00022191,6]
[366430648,1750253150710,-460.0,0.00022191,6]
[366430649,1750253150732,-340.0,0.00022191,6]
[366430650,1750253150755,-553.18,0.00022191,6]
[366430651,1750253150779,-460.0,0.00022191,6]
[366430652,1750253150805,-460.0,0.00022191,6]
[366430653,1750253150827,-460.0,0.00022191,6]
[366430654,1750253150849,-460.0,0.00022191,6]
[366430655,1750253150870,-460.0,0.00022191,6]
[366430656,1750253150894,-862.04,0.00022191,6]
[366430657,1750253150917,-460.0,0.00022191,6]
[366430658,1750253150942,-460.0,0.00022191,6]
[366430659,1750253150965,-460.0,0.00022191,6]
[366430660,1750253150987,-460.0,0.00022191,6]
[366430661,1750253151011,-460.0,0.00022191,6]
[366430662,1750253151039,-460.0,0.00022191,6]
[366430663,1750253151063,-1285.08,0.000222,7]
[366430664,1750253151087,-58699.58,0.000222,7]
[366430665,1750253151111,-12542.39314967,0.000222,7]
[366430666,1750253151135,-699.77984398,0.0002225,2]
[366430667,1750253151166,-545.21240959,0.00022314,7]
[366430668,1750253151193,-424.70586748,0.00022332,2]
[366430669,1750253151215,-160.0,0.00022332,2]
[366430670,1750253151241,-168.0,0.00022341,2]
[366430671,1750253151264,-753.47119574,0.00022397,2]
[366430672,1750253151290,-260.0,0.00022464,6]
[366430673,1750253151314,-460.0,0.00022464,6]
[366430674,1750253151337,-460.0,0.00022464,6]
[366430675,1750253151362,-460.0,0.00022464,6]
[366430676,1750253151384,-267.8,0.00022464,6]
[366430677,1750253151407,-460.0,0.00022464,6]
[366430678,1750253151427,-480.7731394,0.00022464,6]
[366430679,1750253151448,-460.0,0.00022464,6]
[366430680,1750253151469,-460.0,0.00022464,6]
[366430681,1750253151492,-368.13971711,0.00022464,6]
[366430682,1750253151516,-401.35085523,0.00022464,6]
[366430683,1750253151539,-460.0,0.00022464,6]
[366430684,1750253151562,-309.26940035,0.00022464,6]
[366430685,1750253151586,-410.0,0.00022464,6]
[366430686,1750253151610,-460.0,0.00022464,6]
[366430687,1750253151635,-460.0,0.00022464,6]
[366430688,1750253151660,-360.0,0.00022464,6]
[366430689,1750253151683,-380.0,0.00022464,6]
[366430690,1750253151709,-561.17,0.00022464,6]
[366430691,1750253151733,-460.0,0.00022464,6]
[366430692,1750253151757,-460.0,0.00022464,6]
[366430693,1750253151781,-460.0,0.00022464,6]
[366430694,1750253151810,-460.0,0.00022464,6]
[366430695,1750253151834,-410.0,0.00022464,6]
[366430696,1750253151857,-410.0,0.00022464,6]
[366430697,1750253151881,-460.0,0.00022464,6]
[366430698,1750253151906,-226.58,0.00022464,6]
[366430699,1750253151930,-460.0,0.00022464,6]
[366430700,1750253151954,-460.0,0.00022464,6]
[366430701,1750253151976,-460.0,0.00022464,6]
[366430702,1750253152000,-460.0,0.00022464,6]
[366430703,1750253152024,-460.0,0.00022464,6]
[366430704,1750253152051,-500.0,0.00022464,6]
[366430705,1750253152076,-420.0,0.00022464,6]
[366430706,1750253152100,-500.0,0.00022464,6]
[366430707,1750253152124,-460.0,0.00022464,6]
[366430708,1750253152148,-460.0,0.00022464,6]
[366430709,1750253152171,-460.0,0.00022464,6]
[366430710,1750253152196,-460.0,0.00022464,6]
[366430711,1750253152225,-460.0,0.00022464,6]
[366430712,1750253152248,-460.0,0.00022464,6]
[366430713,1750253152272,-460.0,0.00022464,6]
[366430714,1750253152299,-460.0,0.00022464,6]
[366430715,1750253152321,-422.05866841,0.00022464,6]
[366430716,1750253152344,-510.68514741,0.00022464,6]
[366430717,1750253152369,-460.0,0.00022464,6]
[366430718,1750253152392,-420.0,0.00022464,6]
[366430719,1750253152415,-460.0,0.00022464,6]
[366430720,1750253152438,-424.0,0.00022464,6]
[366430721,1750253152462,-460.0,0.00022464,6]
[366430722,1750253152483,-258.1015585,0.00022465,6]
[366430723,1750253152505,-469.80510097,0.00022465,6]
[366430724,1750253152527,-230.0,0.00022465,6]
[366430725,1750253152551,-460.0,0.00022465,6]
[366430726,1750253152574,-460.0,0.00022465,6]
[366430727,1750253152597,-460.0,0.00022465,6]
[366430728,1750253152619,-544.42871805,0.00022465,6]
[366430729,1750253152641,-460.0,0.00022465,6]
[366430730,1750253152663,-312.22,0.00022465,6]
[366430731,1750253152685,-460.0,0.00022465,6]
[366430732,1750253152708,-460.0,0.00022465,6]
[366430733,1750253152730,-460.0,0.00022465,6]
[366430734,1750253152752,-460.0,0.00022465,6]
[366430735,1750253152775,-460.0,0.00022465,6]
[366430736,1750253152799,-460.0,0.00022465,6]
[366430737,1750253152822,-460.0,0.00022465,6]
[366430738,1750253152845,-573.27,0.00022465,6]
[366430739,1750253152867,-460.0,0.00022465,6]
[366430740,1750253152889,-460.0,0.00022465,6]
[366430741,1750253152912,-3313.0,0.00022465,6]
[366430742,1750253152933,-460.0,0.00022465,6]
[366430743,1750253152956,-460.0,0.00022465,6]
[366430744,1750253152978,-460.0,0.00022465,6]
[366430745,1750253153002,-1420.54,0.00022465,6]
[366430746,1750253153023,-161.0,0.00022465,6]
[366430747,1750253153047,-460.0,0.00022465,6]
[366430748,1750253153070,-460.0,0.00022465,6]
[366430749,1750253153094,-1440.34,0.00022465,6]
[366430750,1750253153118,-30.50093984,0.00022465,6]
[366430751,1750253204094,-159.77149774,0.00019655,2]
[366430752,1750253228104,-1281.87850226,0.00019655,2]
[366430753,1750253228129,-229.98435572,0.0002066,2]
[366430754,1750253228151,-2883.29,0.00021442,2]
[366430755,1750253228173,-243.93994824,0.00021899,2]
[366430756,1750253228195,-300.0,0.00021916,2]
[366430757,1750253228221,-460.0,0.00021917,6]
[366430758,1750253228252,-2898.87,0.00021917,6]
[366430759,1750253228275,-460.0,0.00021917,6]
[366430760,1750253228300,-1260.3,0.00021917,6]
[366430761,1750253228321,-460.0,0.00021917,6]
[366430762,1750253228344,-427.55728256,0.00021917,6]
[366430763,1750253228367,-1242.97,0.00021917,6]
[366430764,1750253228395,-569.75,0.00021917,6]
[366430765,1750253228417,-460.0,0.00021917,6]
[366430766,1750253228438,-460.0,0.00021917,6]
[366430767,1750253228457,-493.26608209,0.00021917,6]
[366430768,1750253228478,-460.0,0.00021917,6]
[366430769,1750253228499,-243.93994824,0.000221,2]
[366430770,1750253228524,-649.22030331,0.00022189,2]
[366430771,1750253228651,-168.95824352,0.0002219,6]
[366430772,1750253228673,-450.0,0.0002219,6]
[366430773,1750253228695,-460.0,0.0002219,6]
[366430774,1750253228715,-450.0,0.0002219,6]
[366430775,1750253228735,-460.0,0.0002219,6]
[366430776,1750253228756,-360.14861555,0.0002219,6]
[366430777,1750253228777,-450.0,0.0002219,6]
[366430778,1750253228798,-460.0,0.0002219,6]
[366430779,1750253228818,-312.17375379,0.0002219,6]
[366430780,1750253228838,-460.0,0.0002219,6]
[366430781,1750253228858,-460.0,0.0002219,6]
[366430782,1750253228881,-389.05367007,0.0002219,6]
[366430783,1750253228901,-351.41348252,0.0002219,6]
[366430784,1750253228922,-460.0,0.0002219,6]
[366430785,1750253228942,-265.89663688,0.0002219,6]
[366430786,1750253228967,-359.8985992,0.0002219,6]
[366430787,1750253228988,-430.0,0.0002219,6]
[366430788,1750253229015,-460.0,0.0002219,6]
[366430789,1750253229039,-460.0,0.0002219,6]
[366430790,1750253229061,-460.0,0.0002219,6]
[366430791,1750253229083,-460.0,0.0002219,6]
[366430792,1750253229107,-406.2834325,0.0002219,6]
[366430793,1750253229131,-460.0,0.0002219,6]
[366430794,1750253229152,-460.0,0.0002219,6]
[366430795,1750253229173,-460.0,0.0002219,6]
[366430796,1750253229196,-460.0,0.0002219,6]
[366430797,1750253229221,-450.0,0.0002219,6]
[366430798,1750253229242,-404.64973997,0.0002219,6]
[366430799,1750253229265,-417.80901044,0.0002219,6]
[366430800,1750253229289,-2898.87,0.00022191,6]
[366430801,1750253229313,-460.0,0.00022191,6]
[366430802,1750253229337,-1260.3,0.00022191,6]
[366430803,1750253229361,-460.0,0.00022191,6]
[366430804,1750253229384,-1242.97,0.00022191,6]
[366430805,1750253229407,-569.75,0.00022191,6]
[366430806,1750253229428,-460.0,0.00022191,6]
[366430807,1750253229450,-460.0,0.00022191,6]
[366430808,1750253229470,-460.0,0.00022191,6]
[366430809,1750253229498,-545.21240959,0.00022452,7]
[366430810,1750253229518,-420.0,0.00022464,6]
[366430811,1750253229539,-460.0,0.00022464,6]
[366430812,1750253229560,-460.0,0.00022464,6]
[366430813,1750253229581,-390.0,0.00022464,6]
[366430814,1750253229606,-460.0,0.00022464,6]
[366430815,1750253229628,-460.0,0.00022464,6]
[366430816,1750253229651,-460.0,0.00022465,6]
[366430817,1750253229675,-1676.99,0.00022465,6]
[366430818,1750253229697,-460.0,0.00022465,6]
[366430819,1750253229720,-1129.06,0.00022465,6]
[366430820,1750253229742,-460.0,0.00022465,6]
[366430821,1750253229765,-460.0,0.00022465,6]
[366430822,1750253229788,-1707.83,0.00022465,6]
[366430823,1750253229812,-1371.87,0.00022465,6]
[366430824,1750253229834,-986.23,0.00022465,6]
[366430825,1750253229859,-460.0,0.00022465,6]
[366430826,1750253229883,-460.0,0.00022465,6]
[366430827,1750253229906,-750.78,0.00022465,6]
[366430828,1750253229929,-490.44,0.00022465,6]
[366430829,1750253229951,-460.0,0.00022465,6]
[366430830,1750253229973,-460.0,0.00022465,6]
[366430831,1750253229995,-460.0,0.00022465,6]
[366430832,1750253230019,-862.04,0.00022465,6]
[366430833,1750253230041,-311.85,0.00022465,6]
[366430834,1750253230064,-460.0,0.00022465,6]
[366430835,1750253230086,-460.0,0.00022465,6]
[366430836,1750253230110,-190.0,0.00022465,6]
[366430837,1750253230134,-2898.87,0.00022465,6]
[366430838,1750253230155,-460.0,0.00022465,6]
[366430839,1750253230179,-1260.3,0.00022465,6]
[366430840,1750253230202,-460.0,0.00022465,6]
[366430841,1750253230231,-1242.97,0.00022465,6]
[366430842,1750253230257,-569.75,0.00022465,6]
[366430843,1750253230280,-460.0,0.00022465,6]
[366430844,1750253230302,-460.0,0.00022465,6]
[366430845,1750253230323,-460.0,0.00022465,6]
[366430846,1750253230345,-317.59,0.000225,7]
[366430847,1750253230377,-545.21240959,0.0002259,7]
[366430848,1750253230401,-168.0,0.00022603,2]
[366430849,1750253230425,-215.0738,0.00022636,2]
[366430850,1750253230459,-545.21240959,0.00022728,7]
[366430851,1750253230481,-460.0,0.00022738,6]
[366430852,1750253230502,-460.0,0.00022738,6]
[366430853,1750253230523,-190.0,0.00022738,6]
[366430854,1750253230549,-220.0,0.00022738,6]
[366430855,1750253230571,-460.0,0.00022738,6]
[366430856,1750253230596,-292.32,0.00022738,6]
[366430857,1750253230624,-460.82,0.00022738,6]
[366430858,1750253230648,-460.0,0.00022738,6]
[366430859,1750253230671,-460.0,0.00022738,6]
[366430860,1750253230694,-460.0,0.00022738,6]
[366430861,1750253230718,-460.0,0.00022738,6]
[366430862,1750253230741,-460.0,0.00022738,6]
[366430863,1750253230762,-383.41571315,0.00022738,2]
[366430864,1750253230785,-460.0,0.00022738,6]
[366430865,1750253230809,-460.0,0.00022739,6]
[366430866,1750253230832,-225.54,0.00022739,6]
[366430867,1750253230857,-460.0,0.00022739,6]
[366430868,1750253230879,-460.0,0.00022739,6]
[366430869,1750253230903,-460.0,0.00022739,6]
[366430870,1750253230926,-460.0,0.00022739,6]
[366430871,1750253230950,-460.0,0.00022739,6]
[366430872,1750253230973,-460.0,0.00022739,6]
[366430873,1750253230997,-460.0,0.00022739,6]
[366430874,1750253231020,-460.0,0.00022739,6]
[366430875,1750253231141,-590.0,0.00022739,6]
[366430876,1750253231169,-460.0,0.00022739,6]
[366430877,1750253231192,-460.0,0.00022739,6]
[366430878,1750253231222,-1676.99,0.00022739,6]
[366430879,1750253231246,-460.0,0.00022739,6]
[366430880,1750253231270,-1129.06,0.00022739,6]
[366430881,1750253231293,-460.0,0.00022739,6]
[366430882,1750253231317,-460.0,0.00022739,6]
[366430883,1750253231339,-1707.83,0.00022739,6]
[366430884,1750253231368,-1371.87,0.00022739,6]
[366430885,1750253231395,-986.23,0.00022739,6]
[366430886,1750253231420,-460.0,0.00022739,6]
[366430887,1750253231444,-460.0,0.00022739,6]
[366430888,1750253231468,-750.78,0.00022739,6]
[366430889,1750253231492,-490.44,0.00022739,6]
[366430890,1750253231513,-530.56,0.00022739,6]
[366430891,1750253231535,-460.0,0.00022739,6]
[366430892,1750253231557,-460.0,0.00022739,6]
[366430893,1750253231579,-862.04,0.00022739,6]
[366430894,1750253231604,-460.0,0.00022739,6]
[366430895,1750253231627,-460.0,0.00022739,6]
[366430896,1750253231653,-2898.87,0.00022739,6]
[366430897,1750253231678,-1260.3,0.00022739,6]
[366430898,1750253231700,-460.0,0.00022739,6]
[366430899,1750253231725,-1242.97,0.00022739,6]
[366430900,1750253231748,-569.75,0.00022739,6]
[366430901,1750253231771,-460.0,0.00022739,6]
[366430902,1750253231793,-460.0,0.00022739,6]
[366430903,1750253231816,-272.5802503,0.00022739,6]
[366430904,1750253231837,-507.23650433,0.00022831,2]
[366430905,1750253231860,-501.18269043,0.0002284,2]
[366430906,1750253231890,-545.21240959,0.00022866,8]
[366430907,1750253231913,-964.0,0.00022931,2]
[366430908,1750253231935,-2161.0,0.00022931,2]
[366430909,1750253231957,-653.0,0.00022931,2]
[366430910,1750253231979,-465.621,0.00022931,2]
[366430911,1750253232002,-753.47119574,0.00022937,2]
[366430912,1750253232024,-1000.0,0.00023,23]
[366430913,1750253232052,-545.21240959,0.00023003,8]
[366430914,1750253232074,-460.0,0.00023012,6]
[366430915,1750253232097,-279.5566803,0.00023012,6]
[366430916,1750253232119,-460.0,0.00023012,6]
[366430917,1750253232141,-500.0,0.00023012,6]
[366430918,1750253232164,-460.0,0.00023012,6]
[366430919,1750253232186,-460.0,0.00023012,6]
[366430920,1750253232210,-460.0,0.00023012,6]
[366430921,1750253232237,-460.0,0.00023012,6]
[366430922,1750253232266,-460.0,0.00023012,6]
[366430923,1750253232290,-460.0,0.00023012,6]
[366430924,1750253232312,-460.0,0.00023013,6]
[366430925,1750253232335,-460.0,0.00023013,6]
[366430926,1750253232360,-460.0,0.00023013,6]
[366430927,1750253232382,-460.0,0.00023013,6]
[366430928,1750253232404,-460.0,0.00023013,6]
[366430929,1750253232427,-460.0,0.00023013,6]
[366430930,1750253232450,-460.0,0.00023013,6]
[366430931,1750253232474,-460.0,0.00023013,6]
[366430932,1750253232498,-460.0,0.00023013,6]
[366430933,1750253232522,-460.0,0.00023013,6]
[366430934,1750253232547,-1676.99,0.00023013,6]
[366430935,1750253232569,-460.0,0.00023013,6]
[366430936,1750253232595,-1129.06,0.00023013,6]
[366430937,1750253232617,-460.0,0.00023013,6]
[366430938,1750253232639,-460.0,0.00023013,6]
[366430939,1750253232663,-1707.83,0.00023013,6]
[366430940,1750253232687,-1371.87,0.00023013,6]
[366430941,1750253232709,-986.23,0.00023013,6]
[366430942,1750253232731,-460.0,0.00023013,6]
[366430943,1750253232754,-460.0,0.00023013,6]
[366430944,1750253232777,-750.78,0.00023013,6]
[366430945,1750253232800,-490.44,0.00023013,6]
[366430946,1750253232822,-460.0,0.00023013,6]
[366430947,1750253232843,-460.0,0.00023013,6]
[366430948,1750253232866,-862.04,0.00023013,6]
[366430949,1750253232888,-447.74,0.00023013,6]
[366430950,1750253232909,-460.0,0.00023013,6]
[366430951,1750253232934,-2898.87,0.00023013,6]
[366430952,1750253232958,-1260.3,0.00023013,6]
[366430953,1750253232981,-460.0,0.00023013,6]
[366430954,1750253233004,-1242.97,0.00023013,6]
[366430955,1750253233028,-569.75,0.00023013,6]
[366430956,1750253233050,-460.0,0.00023013,6]
[366430957,1750253233080,-545.21240959,0.00023141,8]
[366430958,1750253233103,-500.0,0.00023161,2]
[366430959,1750253233125,-4324.94,0.00023228,2]
[366430960,1750253233147,-486.06,0.00023277,3]
[366430961,1750253233176,-545.21240959,0.00023279,8]
[366430962,1750253233197,-322.48372297,0.00023286,6]
[366430963,1750253233223,-500.0,0.00023286,6]
[366430964,1750253233244,-460.0,0.00023286,6]
[366430965,1750253233270,-460.0,0.00023286,6]
[366430966,1750253233292,-460.0,0.00023286,6]
[366430967,1750253233314,-460.0,0.00023286,6]
[366430968,1750253233336,-460.0,0.00023286,6]
[366430969,1750253233361,-460.0,0.00023286,6]
[366430970,1750253233387,-528.37463466,0.00023287,6]
[366430971,1750253233414,-460.0,0.00023287,6]
[366430972,1750253233437,-460.0,0.00023287,6]
[366430973,1750253233461,-460.0,0.00023287,6]
[366430974,1750253233485,-460.0,0.00023287,6]
[366430975,1750253233509,-460.0,0.00023287,6]
[366430976,1750253233626,-460.0,0.00023287,6]
[366430977,1750253233651,-460.0,0.00023287,6]
[366430978,1750253233679,-1676.99,0.00023287,6]
[366430979,1750253233703,-252.27223512,0.00023287,6]
[366430980,1750253233731,-1129.06,0.00023287,6]
[366430981,1750253233758,-460.0,0.00023287,6]
[366430982,1750253233783,-460.0,0.00023287,6]
[366430983,1750253233808,-1707.83,0.00023287,6]
[366430984,1750253233835,-1371.87,0.00023287,6]
[366430985,1750253233863,-986.23,0.00023287,6]
[366430986,1750253233888,-460.0,0.00023287,6]
[366430987,1750253233914,-460.0,0.00023287,6]
[366430988,1750253233942,-750.78,0.00023287,6]
[366430989,1750253233970,-490.44,0.00023287,6]
[366430990,1750253233997,-460.0,0.00023287,6]
[366430991,1750253234024,-202.08577092,0.00023287,6]
[366430992,1750253234050,-862.04,0.00023287,6]
[366430993,1750253234080,-420.0,0.00023287,6]
[366430994,1750253234112,-2898.87,0.00023287,6]
[366430995,1750253234140,-1260.3,0.00023287,6]
[366430996,1750253234164,-460.0,0.00023287,6]
[366430997,1750253234195,-1242.97,0.00023287,6]
[366430998,1750253234226,-569.75,0.00023287,6]
[366430999,1750253234251,-460.0,0.00023287,6]
[366431000,1750253234275,-58699.58,0.000233,7]
[366431001,1750253234301,-168.0,0.00023338,2]
[366431002,1750253234327,-168.0,0.00023339,2]
[366431003,1750253234352,-1285.08,0.000234,7]
[366431004,1750253234384,-545.21240959,0.00023417,9]
[366431005,1750253234409,-753.47119574,0.00023477,2]
[366431006,1750253234441,-545.21240959,0.00023555,9]
[366431007,1750253234463,-500.0,0.0002356,2]
[366431008,1750253234488,-500.0,0.0002356,6]
[366431009,1750253234512,-460.0,0.0002356,6]
[366431010,1750253234536,-362.8980582,0.0002356,6]
[366431011,1750253234563,-460.0,0.0002356,6]
[366431012,1750253234587,-160.0,0.0002356,2]
[366431013,1750253234616,-460.0,0.0002356,6]
[366431014,1750253234639,-460.0,0.0002356,6]
[366431015,1750253234665,-460.0,0.0002356,6]
[366431016,1750253234688,-360.0,0.00023561,6]
[366431017,1750253234712,-460.0,0.00023561,6]
[366431018,1750253234737,-1676.99,0.00023561,6]
[366431019,1750253234762,-1129.06,0.00023561,6]
[366431020,1750253234786,-460.0,0.00023561,6]
[366431021,1750253234811,-460.0,0.00023561,6]
[366431022,1750253234837,-1707.83,0.00023561,6]
[366431023,1750253234866,-1371.87,0.00023561,6]
[366431024,1750253234892,-986.23,0.00023561,6]
[366431025,1750253234919,-460.0,0.00023561,6]
[366431026,1750253234942,-460.0,0.00023561,6]
[366431027,1750253234969,-750.78,0.00023561,6]
[366431028,1750253234995,-490.44,0.00023561,6]
[366431029,1750253235020,-862.04,0.00023561,6]
[366431030,1750253235045,-2898.87,0.00023561,6]
[366431031,1750253235070,-1260.3,0.00023561,6]
[366431032,1750253235094,-283.4902246,0.00023561,6]
[366431033,1750253235119,-1242.97,0.00023561,6]
[366431034,1750253235145,-569.75,0.00023561,6]
[366431035,1750253235171,-460.0,0.00023561,6]
[366431036,1750253235194,-317.59,0.000236,7]
[366431037,1750253235225,-545.21240959,0.00023693,9]
[366431038,1750253235247,-524.0,0.000237,2]
[366431039,1750253235269,-500.0,0.00023714,2]
[366431040,1750253235293,-877.69780996,0.00023756,2]
[366431041,1750253235315,-420.0,0.00023817,2]
[366431042,1750253235346,-545.21240959,0.00023831,10]
[366431043,1750253235369,-563.35035663,0.00023834,6]
[366431044,1750253235393,-460.0,0.00023834,6]
[366431045,1750253235416,-460.0,0.00023834,6]
[366431046,1750253235439,-460.0,0.00023834,6]
[366431047,1750253235463,-1676.99,0.00023835,6]
[366431048,1750253235489,-1129.06,0.00023835,6]
[366431049,1750253235513,-460.0,0.00023835,6]
[366431050,1750253235538,-460.0,0.00023835,6]
[366431051,1750253235563,-1707.83,0.00023835,6]
[366431052,1750253235587,-1371.87,0.00023835,6]
[366431053,1750253235610,-986.23,0.00023835,6]
[366431054,1750253235633,-460.0,0.00023835,6]
[366431055,1750253235655,-460.0,0.00023835,6]
[366431056,1750253235678,-750.78,0.00023835,6]
[366431057,1750253235702,-490.44,0.00023835,6]
[366431058,1750253235726,-862.04,0.00023835,6]
[366431059,1750253235750,-2898.87,0.00023835,6]
[366431060,1750253235777,-1260.3,0.00023835,6]
[366431061,1750253235803,-1242.97,0.00023835,6]
[366431062,1750253235830,-569.75,0.00023835,6]
[366431063,1750253235859,-390.25,0.00023835,6]
[366431064,1750253235883,-121115.2292616,0.0002387,2]
[366431065,1750253236006,-8826.57642909,0.0002056,2]
[366431066,1750253236029,-469.31374328,0.00021917,6]
[366431067,1750253236140,-460.0,0.0002219,6]
[366431068,1750253236165,-500.0,0.0002277,2]
[366431069,1750253236187,-500.0,0.0002291,2]
[366431070,1750253236211,-500.0,0.00023318,2]
[366431071,1750253236232,-1000.0,0.00023458,2]
[366431072,1750253236255,-11026.30700849,0.0002387,2]
[366431073,1750253236278,-500.0,0.00023873,2]
[366431074,1750253236302,-600.0,0.00023873,2]
[366431075,1750253236322,-500.0,0.00023873,2]
[366431076,1750253236346,-168.0,0.00023898,2]
[366431077,1750253236375,-545.21240959,0.00023969,10]
[366431078,1750253236396,-1199.3,0.00024,2]
[366431079,1750253236418,-1000.0,0.00024,24]
[366431080,1750253236440,-223.0315306,0.00024005,2]
[366431081,1750253236461,-596.98801157,0.00024006,2]
[366431082,1750253236483,-753.47119574,0.00024017,2]
[366431083,1750253236503,-500.0,0.00024054,2]